[Event "*** Titled Tuesday Blitz"]
[Site "Chess.com"]
[Date "2018.06.05"]
[Round "3"]
[White "chessking2151"]
[Black "HarutyunianTigranK"]
[Result "0-1"]
[WhiteElo "2422"]
[BlackElo "2729"]
[TimeControl "180+2"]
[EndTime "13:42:15 PDT"]
[Termination "HarutyunianTigranK won by resignation"]

1. Nf3 {[%clk 0:03:01.9]} 1... d5 {[%clk 0:02:59.9]} 2. d4 {[%clk 0:03:02.2]}
2... Nf6 {[%clk 0:03:00.5]} 3. c4 {[%clk 0:03:03.1]} 3... e6 {[%clk 0:03:01.7]}
4. Nc3 {[%clk 0:03:03.5]} 4... Bb4 {[%clk 0:03:02.3]} 5. Bg5 {[%clk 0:03:04.3]}
5... h6 {[%clk 0:03:03]} 6. Bxf6 {[%clk 0:03:01.6]} 6... Qxf6 {[%clk 0:03:04.9]}
7. e3 {[%clk 0:03:03.1]} 7... O-O {[%clk 0:02:58.5]} 8. Qb3 {[%clk 0:03:03.3]}
8... c5 {[%clk 0:02:52.4]} 9. cxd5 {[%clk 0:02:47.5]} 9... exd5 {[%clk
0:02:52.6]} 10. a3 {[%clk 0:02:47.8]} 10... Bxc3+ {[%clk 0:02:52.1]} 11. Qxc3
{[%clk 0:02:38.5]} 11... c4 {[%clk 0:02:47.3]} 12. Ne5 {[%clk 0:02:36.1]} 12...
Nc6 {[%clk 0:02:46.6]} 13. f4 {[%clk 0:02:04.9]} 13... Bf5 {[%clk 0:02:36.3]}
14. Be2 {[%clk 0:02:00.2]} 14... b5 {[%clk 0:02:26.1]} 15. Bf3 {[%clk
0:01:54.9]} 15... Rfd8 {[%clk 0:02:23.3]} 16. O-O {[%clk 0:01:27.6]} 16... a5
{[%clk 0:02:21.9]} 17. b4 {[%clk 0:01:23.3]} 17... axb4 {[%clk 0:02:10.3]} 18.
axb4 {[%clk 0:01:22.8]} 18... Ne7 {[%clk 0:02:10.8]} 19. Ra5 {[%clk 0:00:48.1]}
19... Rxa5 {[%clk 0:02:06.8]} 20. bxa5 {[%clk 0:00:50]} 20... Qd6 {[%clk
0:02:07.8]} 21. g4 {[%clk 0:00:37.8]} 21... Be4 {[%clk 0:02:02.2]} 22. Bxe4
{[%clk 0:00:32.5]} 22... dxe4 {[%clk 0:02:03]} 23. Rb1 {[%clk 0:00:34.2]} 23...
Nd5 {[%clk 0:01:59.3]} 24. Qc2 {[%clk 0:00:34.7]} 24... f6 {[%clk 0:01:47.5]}
25. Ng6 {[%clk 0:00:33.1]} 25... Re8 {[%clk 0:01:29.6]} 26. Kf2 {[%clk
0:00:16.1]} 26... Nb4 {[%clk 0:01:25.8]} 27. Qc3 {[%clk 0:00:17.2]} 27... Nd3+
{[%clk 0:01:26.7]} 28. Ke2 {[%clk 0:00:18.8]} 28... Qd7 {[%clk 0:01:23.9]} 29.
h3 {[%clk 0:00:16.5]} 29... Qf7 {[%clk 0:01:24.4]} 30. f5 {[%clk 0:00:13.5]}
30... Qc7 {[%clk 0:01:23.3]} 31. Nf4 {[%clk 0:00:10.8]} 31... Nxf4+ {[%clk
0:01:20.9]} 32. exf4 {[%clk 0:00:12.7]} 32... Qxf4 {[%clk 0:01:21.6]} 33. Qe3
{[%clk 0:00:14.6]} 33... Qh2+ {[%clk 0:01:18.4]} 34. Kd1 {[%clk 0:00:16.2]}
34... c3 {[%clk 0:01:16.8]} 35. Kc1 {[%clk 0:00:13.6]} 35... Qg2 {[%clk
0:00:54.9]} 36. Rb3 {[%clk 0:00:08.2]} 36... c2 {[%clk 0:00:48.7]} 37. Rc3
{[%clk 0:00:06.9]} 37... Qf1+ {[%clk 0:00:38.9]} 38. Kxc2 {[%clk 0:00:07.5]}
38... Qa1 {[%clk 0:00:39.9]} 39. d5 {[%clk 0:00:05.8]} 39... Qa2+ {[%clk
0:00:40.7]} 40. Kc1 {[%clk 0:00:06.3]} 40... Qxd5 {[%clk 0:00:41.5]} 41. a6
{[%clk 0:00:06.7]} 41... b4 {[%clk 0:00:42.1]} 42. Rc5 {[%clk 0:00:05.2]} 42...
Qa2 {[%clk 0:00:41.9]} 43. Qd2 {[%clk 0:00:05.4]} 43... Qa1+ {[%clk 0:00:38]}
44. Kc2 {[%clk 0:00:06.2]} 44... Qa4+ {[%clk 0:00:38.6]} 45. Kb1 {[%clk
0:00:06.4]} 45... Qxa6 {[%clk 0:00:37.2]} 46. Qd5+ {[%clk 0:00:08]} 46... Kh7
{[%clk 0:00:37.4]} 47. Qf7 {[%clk 0:00:09.6]} 47... Qd3+ {[%clk 0:00:34.7]} 48.
Kb2 {[%clk 0:00:09.1]} 48... Qa3+ {[%clk 0:00:23.6]} 49. Kb1 {[%clk 0:00:09.6]}
49... Ra8 {[%clk 0:00:23.7]} 50. Qg6+ {[%clk 0:00:10.7]} 50... Kh8 {[%clk
0:00:22.8]} 51. Rb5 {[%clk 0:00:09.4]} 51... Qa1+ {[%clk 0:00:22.1]} 52. Kc2
{[%clk 0:00:09.4]} 52... Qc3+ {[%clk 0:00:24]} 53. Kd1 {[%clk 0:00:09.3]} 53...
Ra1+ {[%clk 0:00:25.6]} 0-1

[Event "*** Titled Tuesday Blitz"]
[Site "Chess.com"]
[Date "2018.06.05"]
[Round "3"]
[White "dlp300"]
[Black "AlexZambrano"]
[Result "1-0"]
[WhiteElo "2398"]
[BlackElo "2313"]
[TimeControl "180+2"]
[EndTime "13:42:17 PDT"]
[Termination "dlp300 won by resignation"]

1. d4 {[%clk 0:02:59.8]} 1... Nf6 {[%clk 0:02:34.2]} 2. c4 {[%clk 0:02:59]} 2...
g6 {[%clk 0:02:34.8]} 3. Nc3 {[%clk 0:03:00]} 3... d5 {[%clk 0:02:35.1]} 4. Nf3
{[%clk 0:03:00.3]} 4... Bg7 {[%clk 0:02:35.7]} 5. Bf4 {[%clk 0:03:01.3]} 5...
O-O {[%clk 0:02:34.6]} 6. e3 {[%clk 0:03:02.3]} 6... c6 {[%clk 0:02:32.8]} 7. h3
{[%clk 0:03:02.6]} 7... Qa5 {[%clk 0:02:27.2]} 8. Qb3 {[%clk 0:03:02.4]} 8...
Ne4 {[%clk 0:02:11.6]} 9. Bd3 {[%clk 0:03:00.8]} 9... Nxc3 {[%clk 0:02:08.6]}
10. bxc3 {[%clk 0:03:00.2]} 10... e6 {[%clk 0:02:06.1]} 11. O-O {[%clk
0:02:51.5]} 11... Nd7 {[%clk 0:02:06.5]} 12. a4 {[%clk 0:02:47.8]} 12... Nb6
{[%clk 0:01:55.2]} 13. Bc7 {[%clk 0:02:46.3]} 13... dxc4 {[%clk 0:01:53.3]} 14.
Bxc4 {[%clk 0:02:47]} 14... Qh5 {[%clk 0:01:36.7]} 15. Bxb6 {[%clk 0:02:44.8]}
15... axb6 {[%clk 0:01:35.8]} 16. Qxb6 {[%clk 0:02:44.9]} 16... e5 {[%clk
0:01:35.6]} 17. Nxe5 {[%clk 0:02:42.8]} 17... Bxe5 {[%clk 0:01:36]} 18. dxe5
{[%clk 0:02:43.7]} 18... Qxe5 {[%clk 0:01:36.3]} 19. Qd4 {[%clk 0:02:44.1]}
19... Qg5 {[%clk 0:01:33.7]} 20. h4 {[%clk 0:02:40]} 20... Qh5 {[%clk
0:01:29.9]} 21. Rfd1 {[%clk 0:02:28]} 21... Bg4 {[%clk 0:01:26.2]} 22. f3 {[%clk
0:02:22.9]} 22... Bf5 {[%clk 0:01:22.4]} 23. Qf4 {[%clk 0:02:15.9]} 23... Bc2
{[%clk 0:01:20.5]} 24. Rd7 {[%clk 0:02:09.6]} 24... Qf5 {[%clk 0:01:09.2]} 25.
Qxf5 {[%clk 0:02:05.8]} 25... gxf5 {[%clk 0:01:09.5]} 26. a5 {[%clk 0:01:54.2]}
26... b5 {[%clk 0:01:07.3]} 27. Bf1 {[%clk 0:01:46.1]} 27... Ba4 {[%clk
0:01:06.9]} 28. Rc7 {[%clk 0:01:40.9]} 28... Rfc8 {[%clk 0:00:59.5]} 29. Rxc8+
{[%clk 0:01:39.9]} 29... Rxc8 {[%clk 0:01:00.3]} 30. Bd3 {[%clk 0:01:29.8]}
30... Ra8 {[%clk 0:00:57.4]} 31. Bxf5 {[%clk 0:01:28.4]} 31... Rxa5 {[%clk
0:00:57.8]} 32. Bd7 {[%clk 0:01:28.7]} 32... c5 {[%clk 0:00:50.7]} 33. c4 {[%clk
0:01:26.7]} 33... Ra6 {[%clk 0:00:42.9]} 34. cxb5 {[%clk 0:01:16.9]} 34... Bxb5
{[%clk 0:00:43.3]} 35. Rxa6 {[%clk 0:01:16.2]} 35... Bxa6 {[%clk 0:00:44.4]} 36.
Kf2 {[%clk 0:01:16.5]} 36... Kf8 {[%clk 0:00:45.8]} 37. Bf5 {[%clk 0:01:11.2]}
37... Ke7 {[%clk 0:00:43.9]} 38. Bxh7 {[%clk 0:01:11.2]} 38... Kd6 {[%clk
0:00:40]} 39. g4 {[%clk 0:01:03.2]} 39... c4 {[%clk 0:00:31.2]} 40. h5 {[%clk
0:00:49.4]} 40... Ke7 {[%clk 0:00:27.7]} 41. Bc2 {[%clk 0:00:47.3]} 41... Kf6
{[%clk 0:00:20.8]} 42. f4 {[%clk 0:00:43.7]} 42... Kg7 {[%clk 0:00:20.8]} 43. g5
{[%clk 0:00:42.2]} 43... Bb7 {[%clk 0:00:19]} 44. e4 {[%clk 0:00:40.7]} 44...
Bc8 {[%clk 0:00:17.7]} 45. e5 {[%clk 0:00:40.1]} 45... Bg4 {[%clk 0:00:18]} 46.
h6+ {[%clk 0:00:40.6]} 46... Kh8 {[%clk 0:00:19]} 47. Ke3 {[%clk 0:00:41.6]}
47... Bh5 {[%clk 0:00:17.8]} 48. Kd4 {[%clk 0:00:42.4]} 1-0

[Event "*** Titled Tuesday Blitz"]
[Site "Chess.com"]
[Date "2018.06.05"]
[Round "3"]
[White "Leo_C"]
[Black "CarlssonLudvig"]
[Result "0-1"]
[WhiteElo "2200"]
[BlackElo "2078"]
[TimeControl "180+2"]
[EndTime "13:42:26 PDT"]
[Termination "CarlssonLudvig won by resignation"]

1. d4 {[%clk 0:03:01.9]} 1... Nf6 {[%clk 0:03:00.2]} 2. c4 {[%clk 0:03:02.7]}
2... e6 {[%clk 0:03:00.2]} 3. Nf3 {[%clk 0:03:01.9]} 3... Bb4+ {[%clk
0:02:55.8]} 4. Nbd2 {[%clk 0:03:01.5]} 4... O-O {[%clk 0:02:43.9]} 5. a3 {[%clk
0:02:59.7]} 5... Be7 {[%clk 0:02:44.5]} 6. e4 {[%clk 0:03:00]} 6... d6 {[%clk
0:02:45.7]} 7. Bd3 {[%clk 0:03:00.4]} 7... Nbd7 {[%clk 0:02:47]} 8. e5 {[%clk
0:02:58.6]} 8... dxe5 {[%clk 0:02:44.9]} 9. dxe5 {[%clk 0:02:59.3]} 9... Ng4
{[%clk 0:02:09.7]} 10. Qe2 {[%clk 0:02:51.6]} 10... Ndxe5 {[%clk 0:01:46.5]} 11.
Nxe5 {[%clk 0:02:52]} 11... Nxe5 {[%clk 0:01:48.4]} 12. Bxh7+ {[%clk 0:02:52.9]}
12... Kxh7 {[%clk 0:01:50.3]} 13. Qxe5 {[%clk 0:02:53.8]} 13... Kg8 {[%clk
0:00:59.5]} 14. O-O {[%clk 0:02:50.1]} 14... b6 {[%clk 0:01:00.1]} 15. Nf3
{[%clk 0:02:36.5]} 15... Bb7 {[%clk 0:00:58.4]} 16. Qg3 {[%clk 0:02:35.8]} 16...
Bd6 {[%clk 0:00:52.5]} 17. Bf4 {[%clk 0:02:36.1]} 17... Bxf3 {[%clk 0:00:47.5]}
18. Qxf3 {[%clk 0:02:35.4]} 18... Qf6 {[%clk 0:00:47.4]} 19. Bxd6 {[%clk
0:02:33.6]} 19... Qxf3 {[%clk 0:00:49.1]} 20. gxf3 {[%clk 0:02:34.9]} 20... cxd6
{[%clk 0:00:50.9]} 21. Rfd1 {[%clk 0:02:36.5]} 21... Rfd8 {[%clk 0:00:49.5]} 22.
Rd4 {[%clk 0:02:36.8]} 22... Kf8 {[%clk 0:00:50.2]} 23. Rad1 {[%clk 0:02:37.3]}
23... Ke7 {[%clk 0:00:51.5]} 24. f4 {[%clk 0:02:38.2]} 24... g6 {[%clk
0:00:52.2]} 25. Kg2 {[%clk 0:02:38.6]} 25... Rac8 {[%clk 0:00:53.3]} 26. b4
{[%clk 0:02:38.8]} 26... Rc6 {[%clk 0:00:45.3]} 27. Kf3 {[%clk 0:02:33.8]} 27...
Rdc8 {[%clk 0:00:44]} 28. Kg4 {[%clk 0:02:25.5]} 28... R8c7 {[%clk 0:00:28.7]}
29. Kg5 {[%clk 0:02:19.2]} 29... Rxc4 {[%clk 0:00:28.3]} 30. Rxd6 {[%clk
0:02:19.6]} 30... Rc3 {[%clk 0:00:29]} 31. R1d3 {[%clk 0:02:19]} 31... Rxd3
{[%clk 0:00:29.8]} 32. Rxd3 {[%clk 0:02:19.5]} 32... Rc2 {[%clk 0:00:30.4]} 33.
Rf3 {[%clk 0:02:13.3]} 33... Rd2 {[%clk 0:00:25.9]} 34. Kg4 {[%clk 0:02:07.6]}
34... Kf6 {[%clk 0:00:24.4]} 35. h4 {[%clk 0:02:07.6]} 35... Rd4 {[%clk
0:00:22.3]} 36. Re3 {[%clk 0:02:05.8]} 36... Rc4 {[%clk 0:00:19.4]} 37. Re5
{[%clk 0:01:57.9]} 37... Rc2 {[%clk 0:00:18.7]} 38. Kf3 {[%clk 0:01:57.4]} 38...
Rc3+ {[%clk 0:00:19.7]} 39. Re3 {[%clk 0:01:57.1]} 39... Rc1 {[%clk 0:00:13.7]}
40. Re5 {[%clk 0:01:54.9]} 40... Rh1 {[%clk 0:00:12.7]} 41. Kg3 {[%clk
0:01:55.4]} 41... Rg1+ {[%clk 0:00:13.8]} 42. Kf3 {[%clk 0:01:55.7]} 42... Ra1
{[%clk 0:00:10.6]} 43. Re3 {[%clk 0:01:56.1]} 43... a6 {[%clk 0:00:08]} 44. Rc3
{[%clk 0:01:52.4]} 44... b5 {[%clk 0:00:08.8]} 45. Rd3 {[%clk 0:01:48.7]} 45...
Rc1 {[%clk 0:00:09.4]} 46. Re3 {[%clk 0:01:46.3]} 46... Rc4 {[%clk 0:00:10.1]}
47. Re4 {[%clk 0:01:43.4]} 47... Rc3+ {[%clk 0:00:05.9]} 48. Re3 {[%clk
0:01:44.5]} 48... Rc2 {[%clk 0:00:07.5]} 49. Re2 {[%clk 0:01:45.4]} 49... Rc3+
{[%clk 0:00:03.9]} 50. Re3 {[%clk 0:01:46.3]} 50... Rc1 {[%clk 0:00:05.6]} 51.
Re5 {[%clk 0:01:44.2]} 51... Rc3+ {[%clk 0:00:06.1]} 52. Re3 {[%clk 0:01:45.1]}
52... Rc6 {[%clk 0:00:07.6]} 53. Re5 {[%clk 0:01:45.6]} 53... Rd6 {[%clk
0:00:08.7]} 54. Re3 {[%clk 0:01:42.6]} 54... Rd5 {[%clk 0:00:10]} 55. Kg3 {[%clk
0:01:42]} 55... Kf5 {[%clk 0:00:11.1]} 56. Kf3 {[%clk 0:01:42.9]} 56... f6
{[%clk 0:00:09.9]} 57. Re4 {[%clk 0:01:40]} 57... Rd3+ {[%clk 0:00:10.7]} 58.
Re3 {[%clk 0:01:41]} 58... Rd4 {[%clk 0:00:11.8]} 59. Kg3 {[%clk 0:01:37.7]}
59... Rxf4 {[%clk 0:00:12]} 60. Rc3 {[%clk 0:01:38.8]} 60... Rg4+ {[%clk
0:00:11.7]} 61. Kf3 {[%clk 0:01:35.2]} 61... Rxh4 {[%clk 0:00:11.4]} 62. Kg3
{[%clk 0:01:35.7]} 62... Rc4 {[%clk 0:00:12.1]} 63. Rxc4 {[%clk 0:01:24.5]}
63... bxc4 {[%clk 0:00:13.1]} 64. Kf3 {[%clk 0:01:26]} 64... Ke5 {[%clk
0:00:13.5]} 65. Ke3 {[%clk 0:01:27.1]} 65... Kd5 {[%clk 0:00:14.9]} 66. a4
{[%clk 0:01:28]} 66... e5 {[%clk 0:00:16]} 67. b5 {[%clk 0:01:28.8]} 67... axb5
{[%clk 0:00:17.2]} 68. axb5 {[%clk 0:01:30]} 68... Kc5 {[%clk 0:00:18.2]} 69. b6
{[%clk 0:01:31.5]} 69... Kxb6 {[%clk 0:00:19.5]} 70. Kd2 {[%clk 0:01:32.9]}
70... Kc5 {[%clk 0:00:20.9]} 71. Kc3 {[%clk 0:01:34.4]} 71... f5 {[%clk
0:00:22.6]} 72. f3 {[%clk 0:01:35.2]} 72... g5 {[%clk 0:00:23.7]} 73. Kd2 {[%clk
0:01:35.8]} 73... e4 {[%clk 0:00:25]} 74. fxe4 {[%clk 0:01:36.6]} 74... fxe4
{[%clk 0:00:26.9]} 75. Ke3 {[%clk 0:01:38.4]} 75... c3 {[%clk 0:00:28.6]} 76.
Kxe4 {[%clk 0:01:39.4]} 76... c2 {[%clk 0:00:30]} 0-1

[Event "*** Titled Tuesday Blitz"]
[Site "Chess.com"]
[Date "2018.06.05"]
[Round "3"]
[White "Makalexa"]
[Black "talento10"]
[Result "1/2-1/2"]
[WhiteElo "2046"]
[BlackElo "2158"]
[TimeControl "180+2"]
[EndTime "13:42:27 PDT"]
[Termination "Game drawn - insufficient material"]

1. e4 {[%clk 0:03:01.9]} 1... c5 {[%clk 0:03:00.8]} 2. Nf3 {[%clk 0:03:02.9]}
2... d6 {[%clk 0:03:02.2]} 3. d4 {[%clk 0:03:04.2]} 3... cxd4 {[%clk 0:03:04.1]}
4. Nxd4 {[%clk 0:03:05.7]} 4... Nf6 {[%clk 0:03:05.7]} 5. Nc3 {[%clk 0:03:04.7]}
5... g6 {[%clk 0:03:07]} 6. Be3 {[%clk 0:03:04.4]} 6... Bg7 {[%clk 0:03:08.4]}
7. f3 {[%clk 0:03:05.4]} 7... O-O {[%clk 0:03:09.2]} 8. Qd2 {[%clk 0:03:06.3]}
8... Nc6 {[%clk 0:03:10.7]} 9. O-O-O {[%clk 0:03:02.7]} 9... d5 {[%clk
0:02:53.6]} 10. Qe1 {[%clk 0:03:01.1]} 10... e5 {[%clk 0:02:53.6]} 11. Nxc6
{[%clk 0:02:54.1]} 11... bxc6 {[%clk 0:02:55.5]} 12. Bc5 {[%clk 0:02:52.8]}
12... Re8 {[%clk 0:02:55.5]} 13. g4 {[%clk 0:02:53.3]} 13... Qa5 {[%clk
0:02:11.8]} 14. Ba3 {[%clk 0:02:51.9]} 14... d4 {[%clk 0:01:44.3]} 15. Nd5
{[%clk 0:02:51.5]} 15... Qxe1 {[%clk 0:01:46.2]} 16. Nxf6+ {[%clk 0:02:49.4]}
16... Bxf6 {[%clk 0:01:48.1]} 17. Rxe1 {[%clk 0:02:50.1]} 17... Bg5+ {[%clk
0:01:43.7]} 18. Kd1 {[%clk 0:02:50.2]} 18... Be6 {[%clk 0:01:44.5]} 19. b3
{[%clk 0:02:49.5]} 19... a5 {[%clk 0:01:42.5]} 20. h4 {[%clk 0:02:48.7]} 20...
Bf4 {[%clk 0:01:42.6]} 21. Bc1 {[%clk 0:02:41]} 21... Bxc1 {[%clk 0:01:41.8]}
22. Kxc1 {[%clk 0:02:41.2]} 22... a4 {[%clk 0:01:43.7]} 23. h5 {[%clk
0:02:38.1]} 23... axb3 {[%clk 0:01:14.3]} 24. axb3 {[%clk 0:02:38.3]} 24... Ra2
{[%clk 0:01:16.2]} 25. Bd3 {[%clk 0:02:35]} 25... Rea8 {[%clk 0:01:15]} 26. hxg6
{[%clk 0:02:32.8]} 26... hxg6 {[%clk 0:01:14.5]} 27. g5 {[%clk 0:02:27.7]} 27...
c5 {[%clk 0:01:11.4]} 28. Rh4 {[%clk 0:01:55.3]} 28... c4 {[%clk 0:00:39.5]} 29.
Bxc4 {[%clk 0:01:35.5]} 29... Ra1+ {[%clk 0:00:38.2]} 30. Kd2 {[%clk 0:01:33]}
30... Bxc4 {[%clk 0:00:39.1]} 31. Rxa1 {[%clk 0:01:21.6]} 31... Rxa1 {[%clk
0:00:41]} 32. bxc4 {[%clk 0:01:21.6]} 32... Ra3 {[%clk 0:00:39.9]} 33. f4 {[%clk
0:01:12]} 33... Rc3 {[%clk 0:00:25.3]} 34. fxe5 {[%clk 0:01:03.4]} 34... Kf8
{[%clk 0:00:25.8]} 35. e6 {[%clk 0:00:42.1]} 35... fxe6 {[%clk 0:00:26.5]} 36.
Rf4+ {[%clk 0:00:43.1]} 36... Ke7 {[%clk 0:00:24.9]} 37. Rf6 {[%clk 0:00:44.5]}
37... Rxc4 {[%clk 0:00:25.9]} 38. Kd3 {[%clk 0:00:41.6]} 38... Ra4 {[%clk
0:00:24.2]} 39. Rxg6 {[%clk 0:00:41.4]} 39... e5 {[%clk 0:00:25.6]} 40. Rc6
{[%clk 0:00:35.8]} 40... Ra3+ {[%clk 0:00:25.5]} 41. Kd2 {[%clk 0:00:33.9]}
41... Re3 {[%clk 0:00:20.2]} 42. Rc7+ {[%clk 0:00:32.7]} 42... Kf8 {[%clk
0:00:20.6]} 43. c4 {[%clk 0:00:30.4]} 43... Rxe4 {[%clk 0:00:21.1]} 44. c5
{[%clk 0:00:31.4]} 44... Rg4 {[%clk 0:00:20.1]} 45. Rc8+ {[%clk 0:00:29.4]}
45... Ke7 {[%clk 0:00:21]} 46. Rg8 {[%clk 0:00:26.4]} 46... e4 {[%clk
0:00:19.3]} 47. c6 {[%clk 0:00:26.1]} 47... Kd6 {[%clk 0:00:20.1]} 48. Rg6+
{[%clk 0:00:26.2]} 48... Kc7 {[%clk 0:00:20.8]} 49. Re6 {[%clk 0:00:17.7]} 49...
Rxg5 {[%clk 0:00:13.4]} 50. Rxe4 {[%clk 0:00:17.7]} 50... Rd5 {[%clk 0:00:14.5]}
51. Kd3 {[%clk 0:00:16.7]} 51... Kxc6 {[%clk 0:00:15.2]} 52. Rxd4 {[%clk
0:00:17.6]} 52... Rxd4+ {[%clk 0:00:17.1]} 53. Kxd4 {[%clk 0:00:18.7]} 1/2-1/2

[Event "*** Titled Tuesday Blitz"]
[Site "Chess.com"]
[Date "2018.06.05"]
[Round "3"]
[White "Kubas1010"]
[Black "GasconJR"]
[Result "1-0"]
[WhiteElo "2377"]
[BlackElo "2328"]
[TimeControl "180+2"]
[EndTime "13:42:30 PDT"]
[Termination "Kubas1010 won by resignation"]

1. d4 {[%clk 0:02:58.7]} 1... Nf6 {[%clk 0:03:01]} 2. c4 {[%clk 0:02:55.6]} 2...
e6 {[%clk 0:03:02.4]} 3. g3 {[%clk 0:02:56.3]} 3... d5 {[%clk 0:03:01.8]} 4. Nf3
{[%clk 0:02:57.1]} 4... Bb4+ {[%clk 0:03:03.1]} 5. Bd2 {[%clk 0:02:57.8]} 5...
Bd6 {[%clk 0:03:04.5]} 6. Bg5 {[%clk 0:02:54]} 6... O-O {[%clk 0:03:02.2]} 7.
Nc3 {[%clk 0:02:53.8]} 7... c6 {[%clk 0:03:01.6]} 8. Qc2 {[%clk 0:02:35.5]} 8...
h6 {[%clk 0:03:01.2]} 9. Bxf6 {[%clk 0:02:35.8]} 9... Qxf6 {[%clk 0:03:03.1]}
10. O-O-O {[%clk 0:02:31.6]} 10... Qd8 {[%clk 0:02:50.8]} 11. e4 {[%clk
0:02:31.2]} 11... dxe4 {[%clk 0:02:51.6]} 12. Nxe4 {[%clk 0:02:31.8]} 12... Be7
{[%clk 0:02:48.7]} 13. Ne5 {[%clk 0:02:22.1]} 13... Nd7 {[%clk 0:02:46.5]} 14.
f4 {[%clk 0:02:15]} 14... Qc7 {[%clk 0:02:36.6]} 15. Kb1 {[%clk 0:02:13.7]}
15... b6 {[%clk 0:02:20.9]} 16. Bg2 {[%clk 0:02:12.9]} 16... Bb7 {[%clk
0:02:21.8]} 17. c5 {[%clk 0:02:12.4]} 17... Nf6 {[%clk 0:02:20.6]} 18. Nxf6+
{[%clk 0:02:11.2]} 18... Bxf6 {[%clk 0:02:22.5]} 19. h4 {[%clk 0:01:59.9]} 19...
bxc5 {[%clk 0:02:10.2]} 20. Qxc5 {[%clk 0:01:58.5]} 20... Be7 {[%clk 0:02:10.9]}
21. Qc3 {[%clk 0:01:57.6]} 21... Rab8 {[%clk 0:01:58.9]} 22. Nd3 {[%clk
0:01:51.1]} 22... c5 {[%clk 0:01:38.9]} 23. Bxb7 {[%clk 0:01:49.8]} 23... Qxb7
{[%clk 0:01:40.8]} 24. Nxc5 {[%clk 0:01:50.9]} 24... Qd5 {[%clk 0:01:40.1]} 25.
Rhe1 {[%clk 0:01:48.3]} 25... Rfd8 {[%clk 0:01:14.5]} 26. Nb3 {[%clk 0:01:31.2]}
26... Bf6 {[%clk 0:01:12.8]} 27. Qc5 {[%clk 0:01:27.2]} 27... Qf3 {[%clk
0:00:44.4]} 28. Qc3 {[%clk 0:01:27.8]} 28... Qd5 {[%clk 0:00:42.6]} 29. Rd3
{[%clk 0:01:08]} 29... Rbc8 {[%clk 0:00:36.1]} 30. Qb4 {[%clk 0:01:00.8]} 30...
Qf5 {[%clk 0:00:34.4]} 31. Rd1 {[%clk 0:00:59.9]} 31... Rc7 {[%clk 0:00:30.6]}
32. Qa5 {[%clk 0:00:53.5]} 32... Rcd7 {[%clk 0:00:31.3]} 33. Qxf5 {[%clk
0:00:53.5]} 33... exf5 {[%clk 0:00:32.5]} 34. d5 {[%clk 0:00:54.7]} 34... Be7
{[%clk 0:00:28.8]} 35. Na5 {[%clk 0:00:54.7]} 35... Bd6 {[%clk 0:00:29]} 36. Nc6
{[%clk 0:00:55.4]} 36... Re8 {[%clk 0:00:30.2]} 37. Kc2 {[%clk 0:00:52.6]} 37...
g6 {[%clk 0:00:18.9]} 38. b4 {[%clk 0:00:52]} 38... Kg7 {[%clk 0:00:20.2]} 39.
Ra3 {[%clk 0:00:42.1]} 39... Re2+ {[%clk 0:00:19.2]} 40. Rd2 {[%clk 0:00:41.7]}
40... Re4 {[%clk 0:00:10.7]} 41. Kb3 {[%clk 0:00:40.2]} 41... Re3+ {[%clk
0:00:08.4]} 42. Ka4 {[%clk 0:00:40.8]} 42... Re4 {[%clk 0:00:08]} 43. Kb5 {[%clk
0:00:34]} 43... Kf6 {[%clk 0:00:09.3]} 44. Rd4 {[%clk 0:00:32]} 44... Rb7+
{[%clk 0:00:08.1]} 45. Ka6 {[%clk 0:00:31.1]} 45... Rxd4 {[%clk 0:00:08.7]} 46.
Kxb7 {[%clk 0:00:32.3]} 46... Rxd5 {[%clk 0:00:09.2]} 47. Rxa7 {[%clk
0:00:28.5]} 47... Bxb4 {[%clk 0:00:10.3]} 48. Ra6 {[%clk 0:00:27.3]} 48... Bd6
{[%clk 0:00:10.9]} 49. a4 {[%clk 0:00:27.3]} 49... Ke6 {[%clk 0:00:11.7]} 50. a5
{[%clk 0:00:26.7]} 50... Kd7 {[%clk 0:00:13.1]} 51. Rb6 {[%clk 0:00:25.2]} 51...
Rd3 {[%clk 0:00:13]} 52. a6 {[%clk 0:00:25.4]} 52... Bc5 {[%clk 0:00:08.3]} 53.
Rb5 {[%clk 0:00:24.5]} 53... Bf2 {[%clk 0:00:07.7]} 54. Ne5+ {[%clk 0:00:25]}
1-0